bitfinex-derivatives/quotes_BTCF0:USTF0_20250528
["timestamp","ask_amount","ask_price","bid_price","bid_amount"]
[1748432209449,0.3922,108790.0,108780.0,0.52764461]
[1748432210254,0.39671555,108790.0,108780.0,0.46820023]
[1748432210549,0.39671555,108790.0,108780.0,0.5276381]
[1748432211342,0.00463555,108790.0,108780.0,0.64933833]
[1748432211638,0.00463555,108790.0,108780.0,0.58990046]
[1748432212239,0.00463555,108790.0,108780.0,0.67303526]
[1748432212439,0.00451555,108790.0,108780.0,0.69475453]
[1748432212647,0.00463555,108790.0,108780.0,0.69475453]
[1748432212855,0.00463555,108790.0,108780.0,0.61161973]
[1748432213654,0.00463555,108790.0,108780.0,0.56620812]
[1748432214354,0.00463555,108790.0,108780.0,0.62565871]
[1748432215552,0.00463555,108790.0,108780.0,0.5039556]
[1748432215553,0.12633578,108790.0,108780.0,0.5039556]
[1748432215753,0.15763578,108790.0,108780.0,0.5039556]
[1748432216053,0.15763578,108790.0,108780.0,0.44450789]
[1748432216256,0.15763578,108790.0,108780.0,0.50395564]
[1748432216442,0.51843578,108790.0,108780.0,0.92639564]
[1748432216648,0.55143578,108790.0,108780.0,0.92639564]
[1748432217452,0.42973555,108790.0,108780.0,0.92639564]
[1748432217656,0.55143578,108790.0,108780.0,0.92639564]
[1748432219152,0.55143578,108790.0,108780.0,1.05541409]
[1748432219457,0.55143578,108790.0,108780.0,1.01785409]
[1748432219956,0.42973555,108790.0,108780.0,1.01785409]
[1748432220557,0.55143578,108790.0,108780.0,1.01785409]
[1748432221154,0.42973555,108790.0,108780.0,1.01785409]
[1748432221350,0.55143578,108790.0,108780.0,1.01785409]
[1748432221849,0.42973555,108790.0,108780.0,1.01785409]
[1748432222053,0.06893555,108790.0,108780.0,1.01785409]
[1748432223356,0.19063578,108790.0,108780.0,1.01785409]
[1748432223550,0.19063578,108790.0,108780.0,0.88883564]
[1748432223749,0.06893555,108790.0,108780.0,0.88883564]
[1748432223949,0.06893555,108790.0,108780.0,0.94831843]
[1748432224750,0.06893555,108790.0,108780.0,0.88883564]
[1748432225964,0.06893555,108790.0,108780.0,0.94834331]
[1748432226162,0.06893555,108790.0,108780.0,0.88883564]
[1748432227264,0.06893555,108790.0,108780.0,1.01053587]
[1748432227564,0.03593555,108790.0,108780.0,1.01053587]
[1748432228258,0.03593555,108790.0,108780.0,1.41725922]
[1748432228568,0.00463555,108790.0,108780.0,1.50039402]
[1748432228752,0.00463555,108790.0,108780.0,1.25699356]
[1748432228952,0.00463555,108790.0,108780.0,1.50039402]
[1748432229152,0.00463555,108790.0,108780.0,1.50039654]
[1748432229365,0.00463555,108790.0,108780.0,1.13959654]
[1748432229565,0.00463555,108790.0,108780.0,1.50039654]
[1748432230063,0.00463555,108790.0,108780.0,1.50039775]
[1748432230457,0.00463555,108790.0,108780.0,1.13959775]
[1748432230657,0.03583555,108790.0,108780.0,1.13959775]
[1748432232468,0.03583555,108790.0,108780.0,1.05646295]
[1748432232663,0.03583555,108790.0,108780.0,1.13982007]
[1748432233185,0.03583555,108790.0,108780.0,0.69549232]
[1748432233471,0.03583555,108790.0,108780.0,1.1363352]
[1748432237063,0.02090657,108790.0,108780.0,1.1363352]
[1748432237269,0.02090657,108790.0,108780.0,1.4971352]
[1748432237466,0.03253818,108800.0,108780.0,1.45561078]
[1748432237777,0.00013818,108800.0,108790.0,0.17980863]
[1748432238071,0.03163818,108800.0,108790.0,0.83691561]
[1748432238578,0.15333841,108800.0,108790.0,1.0968883]
[1748432238876,0.15333841,108800.0,108790.0,0.97910886]
[1748432238877,0.54735841,108800.0,108790.0,0.97910886]
[1748432239073,0.54735841,108800.0,108790.0,0.85740863]
[1748432239278,0.54735841,108800.0,108790.0,1.02579038]
[1748432239569,0.54735841,108800.0,108790.0,0.36520863]
[1748432239768,0.42565818,108800.0,108790.0,0.79300863]
[1748432239959,0.54735841,108800.0,108790.0,0.85700863]
[1748432240160,0.42565818,108800.0,108790.0,0.85700863]
[1748432240359,0.57915841,108800.0,108790.0,0.85700863]
[1748432240569,0.57915841,108800.0,108790.0,0.97870886]
[1748432241074,0.57915841,108800.0,108790.0,0.97770886]
[1748432241976,0.45745818,108800.0,108790.0,0.85600863]
[1748432242367,0.45745818,108800.0,108790.0,0.90269015]
[1748432242569,0.45745818,108800.0,108790.0,0.85600863]
[1748432242767,0.45745818,108800.0,108790.0,0.90268119]
[1748432244672,0.45745818,108800.0,108790.0,0.87098119]
[1748432245071,0.45745818,108800.0,108790.0,0.82430863]
[1748432245276,0.45745818,108800.0,108790.0,0.87098072]
[1748432247171,0.45745818,108800.0,108790.0,0.82430863]
[1748432247473,0.45745818,108800.0,108790.0,0.87098234]
[1748432251572,0.45745818,108800.0,108790.0,0.8709881]
[1748432251775,0.45745818,108800.0,108790.0,0.78747947]
[1748432251967,0.45745818,108800.0,108790.0,0.87115942]
[1748432252170,0.45745818,108800.0,108790.0,0.78747947]
[1748432252478,0.45745818,108800.0,108790.0,0.87115822]
[1748432252778,0.45745818,108800.0,108790.0,0.78747947]
[1748432252979,0.45745818,108800.0,108790.0,0.87116586]
[1748432253774,0.45745818,108800.0,108790.0,0.87120477]
[1748432254781,0.46197373,108800.0,108790.0,0.87120477]
[1748432256079,0.46197373,108800.0,108790.0,0.87094714]
[1748432259769,0.46197373,108800.0,108790.0,0.20701912]
[1748432259982,0.58358092,108800.0,108790.0,0.19044096]
[1748432260289,0.58358092,108800.0,108790.0,0.42014714]
[1748432262787,0.58358092,108800.0,108790.0,0.48004966]
[1748432263189,0.58558092,108800.0,108790.0,0.39632436]
[1748432263584,0.58358092,108800.0,108790.0,0.46012436]
[1748432263783,0.46497373,108800.0,108790.0,0.46012436]
[1748432263978,0.58658092,108800.0,108790.0,0.46012436]
[1748432264381,0.58658092,108800.0,108790.0,0.38220252]
[1748432265682,0.58358092,108800.0,108790.0,0.38220252]
[1748432265882,0.58558092,108800.0,108790.0,0.38220252]
[1748432266583,0.58758092,108800.0,108790.0,0.38220252]
[1748432267289,0.94838092,108800.0,108790.0,0.38220252]
[1748432267486,0.94838092,108800.0,108790.0,0.41290252]
[1748432267988,0.82677373,108800.0,108790.0,0.41290252]
[1748432268194,0.94838092,108800.0,108790.0,0.41290252]
[1748432269887,0.94838092,108800.0,108790.0,0.22474887]
[1748432270191,0.94838092,108800.0,108790.0,0.16964015]
[1748432270391,0.94838092,108800.0,108790.0,0.42964015]
[1748432272284,0.94838092,108800.0,108790.0,0.38290252]
[1748432273097,0.94838092,108800.0,108790.0,0.42964015]
[1748432277898,1.07004641,108800.0,108790.0,0.42964015]
[1748432278204,1.07004641,108800.0,108790.0,0.4296349]
[1748432280499,1.07004641,108800.0,108790.0,0.38290252]
[1748432281407,1.07004641,108800.0,108790.0,0.37094687]
[1748432282296,1.06604641,108800.0,108790.0,0.37094687]
[1748432282596,1.06804641,108800.0,108790.0,0.37094687]
[1748432283500,1.06604641,108800.0,108790.0,0.37094687]
[1748432283707,1.06804641,108800.0,108790.0,0.37094687]
[1748432286709,1.06804641,108800.0,108790.0,0.323]
[1748432286997,1.06804641,108800.0,108790.0,0.37096439]
[1748432287413,1.06804641,108800.0,108790.0,0.323]
[1748432290108,1.06804641,108800.0,108790.0,0.3531]
[1748432290404,1.03494641,108800.0,108790.0,0.41300252]
[1748432290607,1.03494641,108800.0,108790.0,0.3531]
[1748432290907,1.03494641,108800.0,108790.0,0.41300252]
[1748432291096,1.03494641,108800.0,108790.0,0.323]
[1748432291297,1.06534641,108800.0,108790.0,0.323]
[1748432291702,1.70033875,108800.0,108790.0,0.35446412]
[1748432292102,1.50033875,108800.0,108790.0,0.35446412]
[1748432292407,1.47033875,108800.0,108790.0,0.35446412]
[1748432292602,1.38033875,108800.0,108790.0,0.35446412]
[1748432292807,1.74033875,108800.0,108790.0,0.35446412]
[1748432293217,1.75033875,108800.0,108790.0,0.30799114]
[1748432293713,1.50033875,108800.0,108790.0,0.30799114]
[1748432293904,1.25709643,108800.0,108790.0,0.30799114]
[1748432294505,1.68469643,108800.0,108790.0,0.30799114]
[1748432298418,1.56302973,108800.0,108790.0,0.30799114]
[1748432298615,1.68469643,108800.0,108790.0,0.33979114]
[1748432300723,1.68469643,108800.0,108790.0,0.2918]
[1748432301111,1.25713643,108800.0,108790.0,0.33979114]
[1748432301317,1.68477643,108800.0,108790.0,0.33979114]
[1748432302411,1.68477643,108800.0,108790.0,0.2918]
[1748432302609,1.68477643,108800.0,108790.0,0.33979114]
[1748432303410,1.88477643,108800.0,108790.0,0.33979114]
[1748432303606,1.69477643,108800.0,108790.0,0.33979114]
[1748432303811,1.91477643,108800.0,108790.0,0.26]
[1748432304006,1.75608877,108800.0,108790.0,0.26]
[1748432304211,1.75608877,108800.0,108780.0,0.00163674]
[1748432304212,2.09775547,108800.0,108780.0,0.00163674]
[1748432304414,0.6962334,108790.0,108780.0,0.17163674]
[1748432304719,1.10754574,108790.0,108780.0,0.17163674]
[1748432304921,1.19946974,108790.0,108780.0,0.17163674]
[1748432305314,1.1581574,108790.0,108780.0,0.17163674]
[1748432305517,1.19944967,108790.0,108780.0,0.17163674]
[1748432306625,1.10752567,108790.0,108780.0,0.17163674]
[1748432307517,1.10750267,108790.0,108780.0,0.17163674]
[1748432307922,1.10950267,108790.0,108780.0,0.17163674]
[1748432308923,1.10950232,108790.0,108780.0,0.17163674]
[1748432309323,1.20142632,108790.0,108760.0,0.42799114]
[1748432309521,0.8432667,108770.0,108760.0,0.1524]
[1748432309721,0.8432667,108770.0,108760.0,0.3307]
[1748432309915,1.3719067,108770.0,108760.0,0.33082]
[1748432310512,1.25024,108770.0,108760.0,0.33082]
[1748432310725,0.9447867,108770.0,108760.0,0.33082]
[1748432311028,0.82312,108770.0,108760.0,0.33082]
[1748432311222,0.9447867,108770.0,108760.0,0.33082]
[1748432312527,0.9457867,108770.0,108760.0,0.33082]
[1748432312923,0.82412,108770.0,108760.0,0.33082]
[1748432313429,0.9457867,108770.0,108760.0,0.33082]
[1748432313820,0.82412,108770.0,108760.0,0.33082]
[1748432317933,0.94579258,108770.0,108760.0,0.33082]
[1748432318635,0.82412,108770.0,108760.0,0.33082]
[1748432318835,0.94579258,108770.0,108760.0,0.33082]
[1748432321224,0.94579258,108770.0,108760.0,0.37881114]
[1748432322033,0.94579258,108770.0,108760.0,0.33082]
[1748432323627,0.94579258,108770.0,108760.0,0.45249258]
[1748432324137,0.94579258,108770.0,108760.0,0.50048372]
[1748432325540,0.94579258,108770.0,108760.0,0.53288372]
[1748432325737,0.94579258,108770.0,108760.0,0.41121114]
[1748432326739,0.82412,108770.0,108760.0,0.41121114]
[1748432326938,0.94579258,108770.0,108760.0,0.41121114]
[1748432327536,0.97689258,108770.0,108760.0,0.41121114]
[1748432330043,0.98140813,108770.0,108760.0,0.41121114]
[1748432330754,1.01250813,108770.0,108760.0,0.41121114]
[1748432330944,1.00799258,108770.0,108760.0,0.41121114]
[1748432333135,1.00799258,108770.0,108760.0,0.45780287]
[1748432333351,1.00799258,108770.0,108760.0,0.40981173]
[1748432334445,1.00799258,108770.0,108760.0,0.46971425]
[1748432335347,1.00799258,108770.0,108760.0,0.46982123]
[1748432335956,1.00799258,108770.0,108760.0,0.42312252]
[1748432336143,1.00799258,108770.0,108760.0,0.46982601]
[1748432337756,1.00799258,108770.0,108760.0,0.42312252]
[1748432338142,1.01250813,108770.0,108760.0,0.42312252]
[1748432339651,1.02250813,108770.0,108760.0,0.42312252]
[1748432340152,1.01799258,108770.0,108760.0,0.46983245]
[1748432340849,1.00799258,108770.0,108760.0,0.46983245]
[1748432342048,0.7848,108770.0,108760.0,0.46983245]
[1748432342353,0.7848,108770.0,108760.0,0.71317761]
[1748432342546,0.7537,108770.0,108760.0,0.71317761]
[1748432342741,0.7537,108770.0,108760.0,0.59150503]
[1748432343044,0.75821555,108770.0,108760.0,0.59150503]
[1748432343349,0.76021555,108770.0,108760.0,0.59150503]
[1748432344241,0.75921555,108770.0,108760.0,0.59155384]
[1748432344443,0.76021555,108770.0,108760.0,0.59155384]
[1748432344649,0.76021555,108770.0,108760.0,0.5447951]
[1748432344948,0.88188813,108770.0,108760.0,0.46988126]
[1748432345143,0.88188813,108770.0,108760.0,0.59155384]
[1748432345343,0.88088813,108770.0,108760.0,0.59155384]
[1748432345543,0.88188813,108770.0,108760.0,0.59155384]
[1748432345744,0.16028813,108770.0,108760.0,0.59155384]
[1748432345948,0.88188813,108770.0,108760.0,0.59155384]
[1748432346950,0.91468813,108770.0,108760.0,0.4356684]
[1748432348557,0.91468813,108770.0,108760.0,0.43566155]
[1748432348748,0.19308813,108770.0,108760.0,0.43566155]
[1748432349055,0.43221555,108770.0,108760.0,0.80111903]
[1748432349652,0.07141555,108770.0,108760.0,0.80111903]
[1748432349954,0.43221555,108770.0,108760.0,0.86131821]
[1748432350144,0.43221555,108770.0,108760.0,0.89281821]
[1748432350345,0.43221555,108770.0,108760.0,1.04659079]
[1748432350542,0.43221555,108770.0,108760.0,0.98639161]
[1748432351360,0.43021555,108770.0,108760.0,1.07011691]
[1748432351655,0.42921555,108770.0,108760.0,1.07011691]
[1748432351855,0.42921555,108770.0,108760.0,0.98639161]
[1748432352455,0.42921555,108770.0,108760.0,1.04656728]
[1748432352655,0.42921555,108770.0,108760.0,0.86471903]
[1748432352958,0.42921555,108770.0,108760.0,0.86450989]
[1748432354157,0.42921555,108770.0,108760.0,0.6211229]
[1748432354458,0.42921555,108770.0,108760.0,0.99961487]
[1748432355361,0.42921555,108770.0,108760.0,0.99949487]
[1748432355654,0.42921555,108770.0,108760.0,0.92436007]
[1748432356452,0.42921555,108770.0,108760.0,0.87781732]
[1748432358064,0.06841555,108770.0,108760.0,0.87781732]
[1748432358253,0.42921555,108770.0,108760.0,0.87781732]
[1748432358762,0.42921555,108770.0,108760.0,0.92420587]
[1748432358961,0.42921555,108770.0,108760.0,0.94764099]
[1748432361064,0.42921555,108770.0,108760.0,0.82596841]
[1748432361362,0.55088813,108770.0,108760.0,0.91554099]
[1748432361866,0.58418813,108770.0,108760.0,0.91554099]
[1748432362051,0.58418813,108770.0,108760.0,0.49061411]
[1748432362257,0.58418813,108770.0,108760.0,0.91497411]
[1748432364069,0.58418813,108770.0,108760.0,0.79330153]
[1748432364367,0.58418813,108770.0,108760.0,0.91497411]
[1748432365870,0.58418813,108770.0,108760.0,0.79330153]
[1748432366070,0.58418813,108770.0,108760.0,0.91497411]
[1748432366571,0.58418813,108770.0,108760.0,0.91498044]
[1748432366968,0.58418813,108770.0,108760.0,0.79330786]
[1748432367270,0.58418813,108770.0,108760.0,0.91498044]
[1748432367657,0.58418813,108770.0,108760.0,0.91498294]
[1748432369367,0.46251555,108770.0,108760.0,0.91498294]
[1748432370973,0.46251555,108770.0,108760.0,0.914995]
[1748432371173,0.46251555,108770.0,108760.0,0.63806963]
[1748432371374,0.46251555,108770.0,108760.0,0.98018044]
[1748432373766,0.46251555,108770.0,108760.0,1.10185302]
[1748432373962,0.03731555,108770.0,108760.0,1.20185302]
[1748432374167,0.00451555,108770.0,108760.0,1.20185302]
[1748432374371,0.00451555,108770.0,108760.0,1.23415302]
[1748432375376,0.42651761,108780.0,108760.0,1.23415302]
[1748432375673,0.42651761,108780.0,108770.0,0.12167258]
[1748432375879,0.42651761,108780.0,108770.0,0.61830044]
[1748432376377,0.00151761,108780.0,108770.0,0.73997302]
[1748432376967,0.00163761,108780.0,108770.0,0.61830044]
[1748432377167,0.00163761,108780.0,108770.0,0.53457514]
[1748432377366,0.00225818,108780.0,108770.0,0.53457514]
[1748432378074,0.00125818,108780.0,108770.0,0.53457514]
[1748432378261,0.00125818,108780.0,108770.0,0.61920327]
[1748432378667,0.00025818,108780.0,108770.0,0.61920327]
[1748432379767,0.00025818,108780.0,108770.0,0.61917574]
[1748432379969,0.00013818,108780.0,108770.0,0.61917574]
[1748432380172,0.00025818,108780.0,108770.0,0.61917574]
[1748432384279,0.00025818,108780.0,108770.0,0.97997574]
[1748432384780,0.00025818,108780.0,108770.0,0.61917574]
[1748432386880,0.00013818,108780.0,108770.0,0.61917574]
[1748432387071,0.00025818,108780.0,108770.0,0.61917574]
[1748432387683,0.00025818,108780.0,108770.0,0.63325587]
[1748432387876,0.00025818,108780.0,108770.0,0.54862774]
[1748432388091,0.00025818,108780.0,108770.0,0.97242774]
[1748432388276,0.06205818,108780.0,108770.0,0.97242774]
[1748432389579,0.03085818,108780.0,108770.0,0.97242774]
[1748432389782,0.03537373,108780.0,108770.0,0.97242774]
[1748432390887,0.03537373,108780.0,108770.0,1.33322774]
[1748432391384,0.03537373,108780.0,108770.0,0.97242774]
[1748432392884,0.03525373,108780.0,108770.0,0.97242774]
[1748432393082,0.03537373,108780.0,108770.0,0.97242774]
[1748432394085,0.06757373,108780.0,108770.0,0.97242774]
[1748432395276,0.06757373,108780.0,108770.0,0.54862774]
[1748432395481,0.06757373,108780.0,108770.0,0.97190774]
[1748432395683,0.06757373,108780.0,108770.0,0.85023516]
[1748432395882,0.06757373,108780.0,108770.0,0.97190774]
[1748432396077,0.06757373,108780.0,108770.0,0.85023516]
[1748432396283,0.06757373,108780.0,108770.0,0.97190774]
[1748432397985,0.06757373,108780.0,108770.0,0.99608071]
[1748432398180,0.06757373,108780.0,108770.0,0.87440813]
[1748432398387,0.06757373,108780.0,108770.0,0.99608071]
[1748432398587,0.06757373,108780.0,108770.0,1.04242872]
[1748432399493,0.06757373,108780.0,108770.0,0.5116075]
[1748432399787,0.06757373,108780.0,108770.0,1.07149195]
[1748432402694,0.06757373,108780.0,108770.0,1.19316453]
[1748432402989,0.06757373,108780.0,108770.0,1.17903317]
[1748432402990,0.05264277,108780.0,108770.0,1.17903317]
[1748432403695,0.05264277,108780.0,108770.0,1.05393542]
[1748432403894,0.05264277,108780.0,108770.0,1.30426541]
[1748432404084,0.05264277,108780.0,108770.0,1.175608]
[1748432404401,0.05264277,108780.0,108770.0,1.05736059]
[1748432405500,0.05264277,108780.0,108770.0,1.02506059]
[1748432405692,0.08334277,108780.0,108770.0,1.02506059]
[1748432405997,0.08334277,108780.0,108770.0,1.02513233]
[1748432408884,0.08334277,108780.0,108770.0,1.05713233]
[1748432410397,0.44414277,108780.0,108770.0,1.09548731]
[1748432410586,0.08334277,108780.0,108770.0,1.09548731]
[1748432411500,0.08334277,108780.0,108770.0,1.14190706]
[1748432411701,0.08334277,108780.0,108770.0,1.05813233]
[1748432412699,0.08334277,108780.0,108770.0,0.55635258]
[1748432412999,0.08334277,108780.0,108770.0,0.98123258]
[1748432413190,0.44414277,108780.0,108770.0,0.98135258]
[1748432415099,0.44414277,108780.0,108770.0,0.85968]
[1748432415301,0.44414277,108780.0,108770.0,0.98135258]
[1748432417694,0.08334277,108780.0,108770.0,0.98135258]
[1748432419399,0.08334277,108780.0,108770.0,0.55735258]
[1748432419603,0.08334277,108780.0,108770.0,0.98099258]
[1748432422105,0.44414277,108780.0,108770.0,0.98099258]
[1748432422594,0.44414277,108780.0,108770.0,1.11217344]
[1748432422991,0.44414277,108780.0,108770.0,0.99050086]
[1748432423197,0.44414277,108780.0,108770.0,1.11217344]
[1748432423405,0.44414277,108780.0,108770.0,1.11213344]
[1748432423791,0.44414277,108780.0,108770.0,1.1122576]
[1748432424204,0.44414277,108780.0,108770.0,0.46750502]
[1748432424400,0.55088415,108780.0,108770.0,0.92812661]
[1748432424603,0.42921157,108780.0,108770.0,1.05678402]
[1748432424807,0.42921157,108780.0,108770.0,1.01278495]
[1748432425305,0.42921157,108780.0,108770.0,1.01290495]
[1748432425810,0.43021157,108780.0,108770.0,1.01090495]
[1748432426009,0.06941157,108780.0,108770.0,1.01090495]
[1748432426310,0.42921157,108780.0,108770.0,1.01090495]
[1748432426618,0.43021157,108780.0,108770.0,1.01090495]
[1748432426809,0.43221157,108780.0,108770.0,1.01090495]
[1748432427013,0.43221157,108780.0,108770.0,0.88923237]
[1748432427205,0.43221157,108780.0,108770.0,1.01090495]
[1748432428209,0.43221157,108780.0,108770.0,1.01090416]
[1748432428902,0.43021157,108780.0,108770.0,1.01090416]
[1748432429109,0.43221157,108780.0,108770.0,1.01090416]
[1748432429507,0.43221157,108780.0,108770.0,0.96449092]
[1748432429811,0.43021157,108780.0,108770.0,0.94025209]
[1748432430109,0.43221157,108780.0,108770.0,0.94025209]
[1748432430408,0.43221157,108780.0,108770.0,0.85067951]
[1748432430609,0.43221157,108780.0,108770.0,0.94025209]
[1748432431509,0.43121157,108780.0,108770.0,0.94025209]
[1748432432510,0.42921157,108780.0,108770.0,0.94025209]
[1748432433407,0.42921157,108780.0,108770.0,0.87971258]
[1748432433610,0.42921157,108780.0,108770.0,0.96449092]
[1748432433811,0.06841157,108780.0,108770.0,0.96449092]
[1748432435824,0.06841157,108780.0,108770.0,0.94025132]
[1748432437709,0.42921157,108780.0,108770.0,0.94025132]
[1748432438008,0.06841157,108780.0,108770.0,0.94025132]
[1748432438316,0.42921157,108780.0,108770.0,0.93997132]
[1748432438815,0.42921157,108780.0,108770.0,0.51653132]
[1748432439016,0.42921157,108780.0,108770.0,0.93997132]
[1748432439217,0.42921157,108780.0,108770.0,0.87943258]
[1748432439417,0.42921157,108780.0,108770.0,0.93997248]
[1748432439618,0.42921157,108780.0,108770.0,0.87943258]
[1748432441117,0.42921157,108780.0,108770.0,0.93997318]
[1748432442712,0.42921157,108780.0,108770.0,0.87943258]
[1748432443611,0.42921157,108780.0,108770.0,0.92584122]
[1748432443816,0.42921157,108780.0,108770.0,1.01061956]
[1748432445816,0.42921157,108780.0,108770.0,1.0106234]
[1748432447024,0.42921157,108780.0,108770.0,0.5871834]
[1748432447223,0.42921157,108780.0,108770.0,1.0101434]
[1748432448029,0.06841157,108780.0,108770.0,1.0101434]
[1748432448222,0.03771157,108780.0,108770.0,0.99683092]
[1748432448417,0.03771157,108780.0,108770.0,1.0432434]
[1748432448624,0.39851157,108780.0,108770.0,1.0432434]
[1748432449219,0.39763555,108780.0,108770.0,1.0432434]
[1748432449421,0.39751555,108780.0,108770.0,1.0432434]
[1748432449729,0.39763555,108780.0,108770.0,1.0432434]
[1748432450220,0.03683555,108780.0,108770.0,1.0432434]
[1748432450420,0.03683555,108780.0,108770.0,1.04325062]
[1748432451429,0.03683555,108780.0,108770.0,1.0432663]
[1748432453522,0.03683555,108780.0,108770.0,0.95847228]
[1748432454023,0.00463555,108780.0,108770.0,0.95847228]
[1748432454923,0.03653555,108780.0,108770.0,0.95847228]
[1748432457135,0.06673555,108780.0,108770.0,0.95847228]
[1748432457434,0.05180448,108780.0,108770.0,0.95847228]
[1748432457633,0.05632003,108780.0,108770.0,0.95847228]
[1748432458933,0.05632003,108780.0,108770.0,1.05751228]
[1748432460339,0.08932003,108780.0,108770.0,1.05751228]
[1748432462740,0.08932003,108780.0,108770.0,1.14290652]
[1748432463240,0.05632003,108780.0,108770.0,1.14290652]
[1748432463741,0.05632003,108780.0,108770.0,1.14292551]
[1748432463935,0.05632003,108780.0,108770.0,1.05709127]
[1748432465844,0.05632003,108780.0,108770.0,1.14292904]
[1748432466741,0.05632003,108780.0,108770.0,1.05709127]
[1748432466943,0.05632003,108780.0,108770.0,1.14292915]
[1748432467546,0.05632003,108780.0,108770.0,1.05709127]
[1748432467731,0.05632003,108780.0,108770.0,0.51289869]
[1748432467939,0.05632003,108780.0,108770.0,1.02391127]
[1748432468234,0.08862003,108780.0,108770.0,0.90223869]
[1748432468442,0.08862003,108780.0,108770.0,1.05429127]
[1748432468642,0.08862003,108780.0,108770.0,1.05441127]
[1748432468846,0.08862003,108780.0,108770.0,1.14012804]
[1748432469242,0.08862003,108780.0,108770.0,1.05441127]
[1748432469639,0.00451555,108780.0,108770.0,1.05441127]
[1748432469845,0.00451555,108780.0,108770.0,1.736217]
[1748432469846,0.00463555,108780.0,108770.0,1.736217]
[1748432470139,0.00096447,108780.0,108770.0,1.67491163]
[1748432470344,0.00096447,108780.0,108770.0,1.79315904]
[1748432470747,0.00096447,108780.0,108770.0,1.74672035]
[1748432471039,0.00096447,108780.0,108770.0,1.62847294]
[1748432471245,0.00096447,108780.0,108770.0,1.63047294]
[1748432471946,0.00096447,108780.0,108770.0,1.63247294]
[1748432472347,0.00096447,108780.0,108770.0,1.62947294]
[1748432472549,0.00096447,108780.0,108770.0,1.63047294]
[1748432472849,0.00096447,108780.0,108770.0,1.99127294]
[1748432474161,0.00096447,108780.0,108770.0,1.99027294]
[1748432474358,0.00096447,108780.0,108770.0,1.99127294]
[1748432477459,0.00096447,108780.0,108770.0,1.81810479]
[1748432478263,0.00096447,108780.0,108770.0,1.90376827]
[1748432479472,0.00096447,108780.0,108770.0,1.90392827]
[1748432480770,0.00096447,108780.0,108770.0,1.88186479]
[1748432481159,0.00096447,108780.0,108770.0,1.92820581]
[1748432481875,0.03166447,108780.0,108770.0,1.92820581]
[1748432484066,0.02125111,108780.0,108770.0,2.04645322]
[1748432484569,0.02125111,108780.0,108770.0,1.96811115]
[1748432485770,0.00451555,108780.0,108770.0,1.96811115]
[1748432487260,0.00451555,108780.0,108770.0,1.60731115]
[1748432487663,0.03501555,108780.0,108770.0,1.60731115]
[1748432487868,0.00451555,108780.0,108770.0,1.60731115]
[1748432491867,0.00451555,108780.0,108770.0,1.75981115]
[1748432492069,0.00451555,108780.0,108770.0,1.60731115]
[1748432492475,0.00451555,108780.0,108770.0,1.72898373]
[1748432494468,0.03611555,108780.0,108770.0,1.52106479]
[1748432497178,0.03611555,108780.0,108770.0,1.27771963]
[1748432497376,0.03611555,108780.0,108770.0,1.52106479]
[1748432498363,0.06641555,108780.0,108770.0,1.52106479]
[1748432499469,0.06641555,108780.0,108770.0,1.56748944]
[1748432499876,0.06641555,108780.0,108770.0,1.68573685]
[1748432501075,0.06641555,108780.0,108770.0,2.04653685]
[1748432501271,0.0138775,108780.0,108770.0,2.04653685]
[1748432502078,0.0138775,108780.0,108770.0,2.04525685]
[1748432502283,0.01839305,108780.0,108770.0,2.04525685]
[1748432503784,0.01839305,108780.0,108770.0,2.17391564]
[1748432504083,0.02573605,108790.0,108770.0,2.05566823]
[1748432504383,0.3608,108800.0,108780.0,0.67150174]
[1748432504587,0.0305,108790.0,108780.0,0.95509519]
[1748432504789,0.0305,108790.0,108780.0,1.07676777]
[1748432505486,0.0305,108790.0,108780.0,0.97792777]
[1748432505679,0.0305,108790.0,108780.0,1.49808777]
[1748432505881,0.0315,108790.0,108780.0,1.49808777]
[1748432506885,0.0315,108790.0,108780.0,1.37460236]
[1748432507095,0.0939,108790.0,108780.0,1.37460236]
[1748432508187,0.0939,108790.0,108780.0,1.37460257]
[1748432509390,0.09841555,108790.0,108780.0,1.37460257]
[1748432509587,0.09841555,108790.0,108780.0,0.95328257]
[1748432509887,0.09841555,108790.0,108780.0,1.37460257]
[1748432512791,0.09841555,108790.0,108780.0,1.37460168]
[1748432517194,0.00551555,108790.0,108780.0,1.37459967]
[1748432517395,0.00013818,108800.0,108780.0,2.40796075]
[1748432517587,0.00013818,108800.0,108790.0,0.69974516]
[1748432517893,0.03325818,108800.0,108790.0,0.83807258]
[1748432518096,0.09865818,108800.0,108790.0,0.92441601]
[1748432518693,0.10065818,108800.0,108790.0,0.97083935]
[1748432518904,0.10065818,108800.0,108790.0,0.88449592]
[1748432519087,0.10265818,108800.0,108790.0,0.88449592]
[1748432519288,0.10165818,108800.0,108790.0,0.88449592]
[1748432519490,0.09965818,108800.0,108790.0,0.88449592]
[1748432519692,0.08473106,108800.0,108790.0,0.88449592]
[1748432520002,0.08473106,108800.0,108790.0,1.13663874]
[1748432520603,0.08473106,108800.0,108790.0,1.00798133]
[1748432521298,0.08473106,108800.0,108790.0,0.85320875]
[1748432521594,0.08473106,108800.0,108790.0,1.18815356]
[1748432521595,0.44553106,108800.0,108790.0,1.18815356]
[1748432522099,0.44553106,108800.0,108790.0,1.06466815]
[1748432524603,0.45004661,108800.0,108790.0,1.06466815]
[1748432525796,0.00013818,108810.0,108790.0,1.66881331]
[1748432526096,0.00013818,108810.0,108800.0,0.90609792]
[1748432526298,0.06093818,108810.0,108800.0,1.15609792]
[1748432526602,0.06105818,108810.0,108800.0,1.03442534]
[1748432528103,0.06105818,108810.0,108800.0,0.94814516]
[1748432528793,0.06105818,108810.0,108800.0,0.96203812]
[1748432530694,0.3608,108850.0,108800.0,1.64762857]
[1748432530899,0.0652,108840.0,108830.0,0.3608]
[1748432531199,0.0652,108840.0,108830.0,0.52382264]
[1748432531401,0.189484,108840.0,108830.0,0.52382264]
[1748432531991,0.189484,108840.0,108830.0,0.52369198]
[1748432532196,0.189484,108840.0,108830.0,0.46214192]
[1748432532401,0.191484,108840.0,108830.0,0.46214192]
[1748432532603,0.191484,108840.0,108830.0,0.3105]
[1748432532800,0.191484,108840.0,108830.0,0.35970114]
[1748432532999,0.552284,108840.0,108830.0,0.35970114]
[1748432533594,0.191484,108840.0,108830.0,0.35970114]
[1748432533803,0.552284,108840.0,108830.0,0.35970114]
[1748432534109,0.650444,108840.0,108830.0,0.35970114]
[1748432534292,0.77198592,108840.0,108830.0,0.35970114]
[1748432534493,0.41118592,108840.0,108830.0,0.35970114]
[1748432535003,0.77198592,108840.0,108830.0,0.35970114]
[1748432535304,0.650444,108840.0,108830.0,0.35970114]
[1748432535495,0.55856,108840.0,108830.0,0.35970114]
[1748432536130,0.19776,108840.0,108830.0,0.35970114]
[1748432536501,0.55856,108840.0,108830.0,0.35970114]
[1748432539706,0.68010192,108840.0,108830.0,0.35970114]
[1748432539906,0.89804339,108840.0,108830.0,0.32920114]
[1748432540108,1.58920339,108840.0,108830.0,0.28]
[1748432540298,1.56920339,108840.0,108820.0,0.0015166]
[1748432540606,1.56920339,108840.0,108820.0,0.1715166]